[Event "*** Titled Tuesday Blitz"]
[Site "Chess.com"]
[Date "2021.02.09"]
[Round "8"]
[White "Sergey85Rodchenkov"]
[Black "Fortitudine"]
[Result "1-0"]
[WhiteElo "2488"]
[BlackElo "2336"]
[TimeControl "180+1"]
[EndTime "11:27:55 PST"]
[Termination "Sergey85Rodchenkov won by resignation"]

1. e4 {[%clk 0:03:00.9]} 1... c5 {[%clk 0:02:58.7]} 2. Nf3 {[%clk 0:03:00.8]}
2... d6 {[%clk 0:02:58.7]} 3. d4 {[%clk 0:03:00.6]} 3... cxd4 {[%clk 0:02:59.6]}
4. Nxd4 {[%clk 0:03:00.1]} 4... Nf6 {[%clk 0:02:59.8]} 5. Nc3 {[%clk 0:03:00.3]}
5... Nc6 {[%clk 0:03:00.1]} 6. Bc4 {[%clk 0:02:59.9]} 6... Qb6 {[%clk
0:02:54.4]} 7. Ndb5 {[%clk 0:02:59.1]} 7... Bg4 {[%clk 0:02:48.8]} 8. f3 {[%clk
0:02:36.5]} 8... Bd7 {[%clk 0:02:48.2]} 9. Qe2 {[%clk 0:02:30.2]} 9... a6 {[%clk
0:02:48]} 10. Be3 {[%clk 0:02:26.7]} 10... Qa5 {[%clk 0:02:46.5]} 11. Nd4 {[%clk
0:02:25]} 11... b5 {[%clk 0:02:30.7]} 12. Bb3 {[%clk 0:02:23]} 12... e6 {[%clk
0:02:20.6]} 13. O-O-O {[%clk 0:02:22.3]} 13... Be7 {[%clk 0:02:11.6]} 14. g4
{[%clk 0:02:22.1]} 14... Rc8 {[%clk 0:01:56.3]} 15. g5 {[%clk 0:02:21.7]} 15...
Nh5 {[%clk 0:01:54.3]} 16. f4 {[%clk 0:02:18.6]} 16... g6 {[%clk 0:01:53.8]} 17.
f5 {[%clk 0:02:13.5]} 17... Nxd4 {[%clk 0:01:48.3]} 18. Rxd4 {[%clk 0:02:03.5]}
18... Rxc3 {[%clk 0:01:36.1]} 19. bxc3 {[%clk 0:01:59.7]} 19... Qxc3 {[%clk
0:01:32.4]} 20. Kb1 {[%clk 0:01:59.3]} 20... Bxg5 {[%clk 0:01:16.6]} 21. Rd3
{[%clk 0:01:43.4]} 21... Qf6 {[%clk 0:01:16.2]} 22. Bxg5 {[%clk 0:01:40.5]}
22... Qxg5 {[%clk 0:01:17.1]} 23. Rxd6 {[%clk 0:01:38.9]} 23... Ke7 {[%clk
0:00:25.5]} 24. Rhd1 {[%clk 0:01:36.2]} 24... Rd8 {[%clk 0:00:23.1]} 25. fxe6
{[%clk 0:01:29.9]} 25... fxe6 {[%clk 0:00:20.6]} 26. e5 {[%clk 0:01:25.4]} 26...
Nf4 {[%clk 0:00:16]} 27. Qe3 {[%clk 0:01:20.8]} 27... Qf5 {[%clk 0:00:09.7]} 28.
Qc5 {[%clk 0:01:17]} 28... Nd5 {[%clk 0:00:06.3]} 29. R6xd5+ {[%clk 0:01:16.1]}
1-0

[Event "*** Titled Tuesday Blitz"]
[Site "Chess.com"]
[Date "2021.02.09"]
[Round "8"]
[White "AldokhinIvan"]
[Black "Nikolaj_6"]
[Result "0-1"]
[WhiteElo "2470"]
[BlackElo "2641"]
[TimeControl "180+1"]
[EndTime "11:28:04 PST"]
[Termination "Nikolaj_6 won by resignation"]

1. e4 {[%clk 0:02:58]} 1... c5 {[%clk 0:02:59.6]} 2. Nf3 {[%clk 0:02:58.5]} 2...
d6 {[%clk 0:02:59.5]} 3. d4 {[%clk 0:02:59.4]} 3... cxd4 {[%clk 0:03:00.1]} 4.
Nxd4 {[%clk 0:03:00.3]} 4... Nf6 {[%clk 0:03:00.4]} 5. Nc3 {[%clk 0:03:00.9]}
5... a6 {[%clk 0:03:00.8]} 6. Bc4 {[%clk 0:02:58.8]} 6... e6 {[%clk 0:03:00.7]}
7. Bb3 {[%clk 0:02:58.8]} 7... b5 {[%clk 0:03:00.8]} 8. O-O {[%clk 0:02:51.5]}
8... b4 {[%clk 0:03:00.8]} 9. Na4 {[%clk 0:02:49.6]} 9... Bd7 {[%clk 0:03:01.1]}
10. f4 {[%clk 0:02:43.6]} 10... Nc6 {[%clk 0:03:01.1]} 11. Be3 {[%clk
0:02:39.8]} 11... Rb8 {[%clk 0:02:58.6]} 12. f5 {[%clk 0:02:28.4]} 12... Nxd4
{[%clk 0:02:56.7]} 13. Bxd4 {[%clk 0:02:11]} 13... e5 {[%clk 0:02:56.6]} 14. Ba7
{[%clk 0:02:09.1]} 14... Rb7 {[%clk 0:02:53.3]} 15. Be3 {[%clk 0:02:06.7]} 15...
Be7 {[%clk 0:02:50.7]} 16. c4 {[%clk 0:01:47.3]} 16... O-O {[%clk 0:02:48.1]}
17. c5 {[%clk 0:01:44.5]} 17... Bb5 {[%clk 0:02:23.7]} 18. Re1 {[%clk
0:01:26.5]} 18... dxc5 {[%clk 0:02:04.9]} 19. Nxc5 {[%clk 0:01:14.7]} 19... Rc7
{[%clk 0:02:04]} 20. Na4 {[%clk 0:00:58.5]} 20... Rd7 {[%clk 0:02:01.4]} 21. Qf3
{[%clk 0:00:53]} 21... Bc6 {[%clk 0:01:47.2]} 22. Bb6 {[%clk 0:00:39]} 22... Qa8
{[%clk 0:01:46.5]} 23. Nc5 {[%clk 0:00:35.2]} 23... Rd4 {[%clk 0:01:27.9]} 24.
Ne6 {[%clk 0:00:24.2]} 24... Rxe4 {[%clk 0:01:20.9]} 25. Qg3 {[%clk 0:00:16.4]}
25... fxe6 {[%clk 0:01:18]} 26. fxe6 {[%clk 0:00:13.6]} 26... Rxe1+ {[%clk
0:01:14.4]} 27. Rxe1 {[%clk 0:00:12.9]} 27... e4 {[%clk 0:01:14]} 28. Kh1 {[%clk
0:00:12]} 28... Bd5 {[%clk 0:01:14.2]} 29. Qc7 {[%clk 0:00:10.9]} 29... Qb7
{[%clk 0:01:10.1]} 30. Bxd5 {[%clk 0:00:08.5]} 30... Qxc7 {[%clk 0:01:07.6]} 31.
Bxc7 {[%clk 0:00:08]} 31... Nxd5 {[%clk 0:01:08.2]} 0-1

[Event "*** Titled Tuesday Blitz"]
[Site "Chess.com"]
[Date "2021.02.09"]
[Round "8"]
[White "Skatchkov_V"]
[Black "leoduarte"]
[Result "1-0"]
[WhiteElo "2539"]
[BlackElo "2394"]
[TimeControl "180+1"]
[EndTime "11:28:06 PST"]
[Termination "Skatchkov_V won on time"]

1. d4 {[%clk 0:02:59.4]} 1... Nf6 {[%clk 0:02:53.3]} 2. c4 {[%clk 0:02:59.5]}
2... c5 {[%clk 0:02:53.8]} 3. d5 {[%clk 0:02:59.5]} 3... b5 {[%clk 0:02:54.3]}
4. Nf3 {[%clk 0:03:00]} 4... g6 {[%clk 0:02:49.2]} 5. Qc2 {[%clk 0:03:00]} 5...
Bg7 {[%clk 0:02:44.6]} 6. e4 {[%clk 0:03:00.2]} 6... d6 {[%clk 0:02:44.5]} 7.
cxb5 {[%clk 0:02:53.5]} 7... a6 {[%clk 0:02:43.7]} 8. Nc3 {[%clk 0:02:54.4]}
8... O-O {[%clk 0:02:42.6]} 9. a4 {[%clk 0:02:53.2]} 9... e6 {[%clk 0:02:37.5]}
10. dxe6 {[%clk 0:02:51.5]} 10... fxe6 {[%clk 0:02:36.6]} 11. Be2 {[%clk
0:02:49.4]} 11... d5 {[%clk 0:02:34.1]} 12. exd5 {[%clk 0:02:42.8]} 12... exd5
{[%clk 0:02:35]} 13. O-O {[%clk 0:02:42.5]} 13... Bf5 {[%clk 0:02:17.4]} 14. Qb3
{[%clk 0:02:33.6]} 14... Kh8 {[%clk 0:02:16.5]} 15. Bg5 {[%clk 0:02:25.2]} 15...
c4 {[%clk 0:01:51]} 16. Qb4 {[%clk 0:02:25]} 16... d4 {[%clk 0:01:46.7]} 17.
Rad1 {[%clk 0:02:04.6]} 17... d3 {[%clk 0:01:07.5]} 18. Qxc4 {[%clk 0:01:36.4]}
18... dxe2 {[%clk 0:01:02.8]} 19. Rxd8 {[%clk 0:01:37.3]} 19... exf1=Q+ {[%clk
0:01:00.6]} 20. Kxf1 {[%clk 0:01:38.2]} 20... Rxd8 {[%clk 0:01:00.5]} 21. Ne5
{[%clk 0:01:39.1]} 21... Bd3+ {[%clk 0:00:27.7]} 22. Nxd3 {[%clk 0:01:38.9]}
22... axb5 {[%clk 0:00:28.2]} 23. Qe6 {[%clk 0:01:27.5]} 23... Ra6 {[%clk
0:00:06.4]} 24. Qe7 {[%clk 0:01:11.5]} 24... Re8 {[%clk 0:00:03.3]} 25. Qb7
{[%clk 0:01:11.8]} 25... Rd6 {[%clk 0:00:02.5]} 26. Ne5 {[%clk 0:01:12.3]} 26...
Rxe5 {[%clk 0:00:01.9]} 27. Qxb8+ {[%clk 0:01:12.6]} 27... Ne8 {[%clk
0:00:01.4]} 28. Bf4 {[%clk 0:01:11.9]} 1-0

[Event "*** Titled Tuesday Blitz"]
[Site "Chess.com"]
[Date "2021.02.09"]
[Round "8"]
[White "ckgchess"]
[Black "chescomhuynya"]
[Result "1-0"]
[WhiteElo "2730"]
[BlackElo "2504"]
[TimeControl "180+1"]
[EndTime "11:28:19 PST"]
[Termination "ckgchess won by resignation"]

1. e4 {[%clk 0:03:00.9]} 1... c5 {[%clk 0:02:59.7]} 2. c3 {[%clk 0:03:01]} 2...
d5 {[%clk 0:02:59.7]} 3. exd5 {[%clk 0:03:01.9]} 3... Qxd5 {[%clk 0:03:00.6]} 4.
d4 {[%clk 0:03:02.4]} 4... Nf6 {[%clk 0:03:00.4]} 5. Nf3 {[%clk 0:03:03.1]} 5...
Bg4 {[%clk 0:03:00]} 6. Be2 {[%clk 0:03:03.2]} 6... e6 {[%clk 0:02:58.8]} 7. h3
{[%clk 0:03:03.7]} 7... Bh5 {[%clk 0:02:58.8]} 8. O-O {[%clk 0:03:03.1]} 8...
Nc6 {[%clk 0:02:59.1]} 9. Be3 {[%clk 0:03:03.2]} 9... cxd4 {[%clk 0:02:58.3]}
10. cxd4 {[%clk 0:03:04.1]} 10... Be7 {[%clk 0:02:58.9]} 11. Nc3 {[%clk
0:03:04.3]} 11... Qd6 {[%clk 0:02:59.5]} 12. Qb3 {[%clk 0:03:04.7]} 12... O-O
{[%clk 0:02:59.3]} 13. Rfd1 {[%clk 0:03:01.3]} 13... Rfd8 {[%clk 0:02:58.9]} 14.
Rac1 {[%clk 0:03:00.8]} 14... a6 {[%clk 0:02:49.9]} 15. Na4 {[%clk 0:01:58.8]}
15... Nd5 {[%clk 0:02:28.2]} 16. Nc5 {[%clk 0:01:43.8]} 16... Na5 {[%clk
0:02:17.9]} 17. Qa4 {[%clk 0:01:33.4]} 17... Nxe3 {[%clk 0:01:58.2]} 18. fxe3
{[%clk 0:01:33.2]} 18... b6 {[%clk 0:01:52.9]} 19. b4 {[%clk 0:01:24.9]} 19...
bxc5 {[%clk 0:01:03.8]} 20. Qxa5 {[%clk 0:01:23.8]} 20... Bxf3 {[%clk
0:00:35.9]} 21. Bxf3 {[%clk 0:01:24]} 21... cxd4 {[%clk 0:00:26.4]} 22. Bxa8
{[%clk 0:01:22.8]} 22... Rxa8 {[%clk 0:00:24.9]} 23. Qc7 {[%clk 0:00:51]} 23...
Qxb4 {[%clk 0:00:17.4]} 24. Rxd4 {[%clk 0:00:46.9]} 24... Qa3 {[%clk 0:00:17.5]}
25. Rc3 {[%clk 0:00:45.6]} 25... Qb2 {[%clk 0:00:06.5]} 26. Qxe7 {[%clk
0:00:42.7]} 1-0

[Event "*** Titled Tuesday Blitz"]
[Site "Chess.com"]
[Date "2021.02.09"]
[Round "8"]
[White "Artem_Sadovsky"]
[Black "eduardoperalta"]
[Result "1-0"]
[WhiteElo "2544"]
[BlackElo "2402"]
[TimeControl "180+1"]
[EndTime "11:28:21 PST"]
[Termination "Artem_Sadovsky won by checkmate"]

1. Nf3 {[%clk 0:03:00.9]} 1... Nf6 {[%clk 0:02:59.2]} 2. c4 {[%clk 0:03:00.9]}
2... g6 {[%clk 0:02:58.5]} 3. b3 {[%clk 0:03:00.3]} 3... Bg7 {[%clk 0:02:58.2]}
4. Bb2 {[%clk 0:03:00.6]} 4... O-O {[%clk 0:02:57.7]} 5. e3 {[%clk 0:03:00.7]}
5... c5 {[%clk 0:02:51.3]} 6. Be2 {[%clk 0:03:00.6]} 6... Nc6 {[%clk 0:02:50.5]}
7. O-O {[%clk 0:03:00.5]} 7... d6 {[%clk 0:02:50.4]} 8. d4 {[%clk 0:03:00.8]}
8... Bf5 {[%clk 0:02:47.9]} 9. d5 {[%clk 0:02:54.1]} 9... Na5 {[%clk 0:02:46.4]}
10. Nbd2 {[%clk 0:02:47.5]} 10... a6 {[%clk 0:02:45.4]} 11. a4 {[%clk 0:02:36]}
11... Rb8 {[%clk 0:02:41.8]} 12. Bc3 {[%clk 0:02:26.2]} 12... Bg4 {[%clk
0:02:39.2]} 13. Qc2 {[%clk 0:01:48.3]} 13... Bxf3 {[%clk 0:02:14]} 14. Nxf3
{[%clk 0:01:37.3]} 14... b6 {[%clk 0:02:11.4]} 15. e4 {[%clk 0:01:33.7]} 15...
Nd7 {[%clk 0:02:09.1]} 16. Bxg7 {[%clk 0:01:29.3]} 16... Kxg7 {[%clk 0:02:10]}
17. Qc3+ {[%clk 0:01:29.2]} 17... Kg8 {[%clk 0:02:09.3]} 18. h4 {[%clk
0:01:19.5]} 18... Nf6 {[%clk 0:02:04.3]} 19. e5 {[%clk 0:01:16.7]} 19... dxe5
{[%clk 0:02:03]} 20. Nxe5 {[%clk 0:01:15.6]} 20... Qd6 {[%clk 0:02:02.1]} 21.
Bf3 {[%clk 0:01:05.1]} 21... Nxb3 {[%clk 0:01:58.6]} 22. Qxb3 {[%clk 0:00:53.2]}
22... Qxe5 {[%clk 0:01:58.3]} 23. Rae1 {[%clk 0:00:53.9]} 23... Qd6 {[%clk
0:01:56.7]} 24. a5 {[%clk 0:00:54.4]} 24... bxa5 {[%clk 0:01:55.5]} 25. Qc3
{[%clk 0:00:54.9]} 25... Rb4 {[%clk 0:01:53.9]} 26. h5 {[%clk 0:00:52.6]} 26...
a4 {[%clk 0:01:46.5]} 27. h6 {[%clk 0:00:52]} 27... Re8 {[%clk 0:01:41.7]} 28.
Re4 {[%clk 0:00:40]} 28... Rb3 {[%clk 0:01:38]} 29. Qa1 {[%clk 0:00:40.5]} 29...
a3 {[%clk 0:01:36.3]} 30. Rfe1 {[%clk 0:00:40.8]} 30... Reb8 {[%clk 0:01:19.2]}
31. Rxe7 {[%clk 0:00:38.4]} 31... Qxe7 {[%clk 0:01:17.3]} 32. Rxe7 {[%clk
0:00:36.7]} 32... Rb1+ {[%clk 0:01:17.4]} 33. Re1 {[%clk 0:00:31.9]} 33... Rxa1
{[%clk 0:01:17.1]} 34. Rxa1 {[%clk 0:00:32.8]} 34... Rb3 {[%clk 0:01:06.4]} 35.
Bd1 {[%clk 0:00:31.3]} 35... Rc3 {[%clk 0:01:04.2]} 36. Rb1 {[%clk 0:00:31.4]}
36... Kf8 {[%clk 0:01:02.4]} 37. d6 {[%clk 0:00:28.8]} 37... Ke8 {[%clk
0:01:02.3]} 38. Ba4+ {[%clk 0:00:28.8]} 38... Nd7 {[%clk 0:00:51.7]} 39. Rb8#
{[%clk 0:00:29.7]} 1-0

[Event "*** Titled Tuesday Blitz"]
[Site "Chess.com"]
[Date "2021.02.09"]
[Round "8"]
[White "enriquebutti"]
[Black "northridgehawk"]
[Result "1-0"]
[WhiteElo "2188"]
[BlackElo "2325"]
[TimeControl "180+1"]
[EndTime "11:28:21 PST"]
[Termination "enriquebutti won by resignation"]

1. d4 {[%clk 0:02:59.9]} 1... f5 {[%clk 0:02:58.8]} 2. Nf3 {[%clk 0:02:59.6]}
2... Nf6 {[%clk 0:02:59.7]} 3. g3 {[%clk 0:02:59.2]} 3... g6 {[%clk 0:02:59.8]}
4. Bg2 {[%clk 0:02:58.9]} 4... Bg7 {[%clk 0:03:00.7]} 5. O-O {[%clk 0:02:59.2]}
5... O-O {[%clk 0:03:01.6]} 6. b3 {[%clk 0:02:59.4]} 6... d6 {[%clk 0:03:00.9]}
7. Bb2 {[%clk 0:02:59.4]} 7... e5 {[%clk 0:03:01.1]} 8. dxe5 {[%clk 0:02:58.8]}
8... Ng4 {[%clk 0:03:00.7]} 9. Qc1 {[%clk 0:02:52.4]} 9... Nxe5 {[%clk
0:02:57.5]} 10. c4 {[%clk 0:02:47.5]} 10... Nbc6 {[%clk 0:02:53.4]} 11. Nc3
{[%clk 0:02:45.6]} 11... Be6 {[%clk 0:02:49.7]} 12. Rd1 {[%clk 0:02:44.5]} 12...
Qe7 {[%clk 0:02:47.4]} 13. Nd5 {[%clk 0:02:41.7]} 13... Bxd5 {[%clk 0:02:47.2]}
14. cxd5 {[%clk 0:02:41.5]} 14... Nb4 {[%clk 0:02:44.5]} 15. Nd4 {[%clk
0:02:34.1]} 15... Rae8 {[%clk 0:02:32]} 16. Ne6 {[%clk 0:02:31.4]} 16... Nf7
{[%clk 0:02:17.3]} 17. Bxg7 {[%clk 0:02:25.5]} 17... Ne5 {[%clk 0:02:16.7]} 18.
Bxf8 {[%clk 0:02:22.4]} 18... Rxf8 {[%clk 0:02:17.6]} 19. Nxf8 {[%clk
0:02:22.1]} 19... Qxf8 {[%clk 0:02:17.5]} 20. Qxc7 {[%clk 0:02:15.9]} 20... Qf6
{[%clk 0:02:14.3]} 21. a3 {[%clk 0:02:08.8]} 21... Na6 {[%clk 0:02:11.5]} 22.
Qxb7 {[%clk 0:02:08]} 22... Nc5 {[%clk 0:02:11.9]} 23. Qb8+ {[%clk 0:02:07.7]}
23... Kg7 {[%clk 0:02:11.8]} 24. Rac1 {[%clk 0:02:02.2]} 24... Ncd7 {[%clk
0:02:02.7]} 25. Qxa7 {[%clk 0:01:58]} 25... Kh6 {[%clk 0:02:02.5]} 26. Rc7
{[%clk 0:01:57]} 26... Nf8 {[%clk 0:01:44.7]} 27. b4 {[%clk 0:01:55.6]} 27... f4
{[%clk 0:01:38.4]} 28. b5 {[%clk 0:01:55.3]} 28... fxg3 {[%clk 0:01:27.5]} 29.
hxg3 {[%clk 0:01:54.9]} 29... Kh5 {[%clk 0:01:22.5]} 30. b6 {[%clk 0:01:48.9]}
30... h6 {[%clk 0:01:21.6]} 31. b7 {[%clk 0:01:47.9]} 31... g5 {[%clk
0:01:20.9]} 32. b8=Q {[%clk 0:01:45.3]} 32... Nfg6 {[%clk 0:01:21.3]} 33. Qe8
{[%clk 0:01:38.3]} 33... Qf5 {[%clk 0:01:19.9]} 34. Rf7 {[%clk 0:01:28.7]} 34...
Qc2 {[%clk 0:01:15.9]} 35. Rf1 {[%clk 0:01:26.5]} 35... Qxe2 {[%clk 0:01:15]}
36. Rf6 {[%clk 0:01:22.2]} 36... g4 {[%clk 0:00:48.5]} 37. Qae7 {[%clk
0:01:06.2]} 37... Qd3 {[%clk 0:00:37.1]} 38. Rxg6 {[%clk 0:01:03.8]} 38... Nf3+
{[%clk 0:00:33.5]} 39. Bxf3 {[%clk 0:01:02.5]} 39... Qxf1+ {[%clk 0:00:33.3]}
40. Kxf1 {[%clk 0:00:48.4]} 1-0

[Event "*** Titled Tuesday Blitz"]
[Site "Chess.com"]
[Date "2021.02.09"]
[Round "8"]
[White "Onischuk_V"]
[Black "jefferyx"]
[Result "1-0"]
[WhiteElo "2839"]
[BlackElo "2978"]
[TimeControl "180+1"]
[EndTime "11:28:24 PST"]
[Termination "Onischuk_V won by resignation"]

1. e4 {[%clk 0:03:00.3]} 1... c5 {[%clk 0:02:56]} 2. Nf3 {[%clk 0:02:59.2]} 2...
d6 {[%clk 0:02:56.5]} 3. d4 {[%clk 0:02:58.4]} 3... cxd4 {[%clk 0:02:57.4]} 4.
Nxd4 {[%clk 0:02:58.9]} 4... Nf6 {[%clk 0:02:58]} 5. Nc3 {[%clk 0:02:59.3]} 5...
a6 {[%clk 0:02:58.6]} 6. a4 {[%clk 0:02:58.9]} 6... g6 {[%clk 0:02:58.2]} 7. g3
{[%clk 0:02:55.3]} 7... Bg7 {[%clk 0:02:58.3]} 8. Bg2 {[%clk 0:02:55.6]} 8...
O-O {[%clk 0:02:59]} 9. O-O {[%clk 0:02:55.2]} 9... Nc6 {[%clk 0:02:59.5]} 10.
Nde2 {[%clk 0:02:55]} 10... Bd7 {[%clk 0:02:56.4]} 11. h3 {[%clk 0:02:49.7]}
11... Rb8 {[%clk 0:02:56]} 12. Nd5 {[%clk 0:02:44.3]} 12... Ne8 {[%clk
0:02:24.5]} 13. c3 {[%clk 0:02:41.4]} 13... e6 {[%clk 0:02:20.7]} 14. Nb4 {[%clk
0:02:28.7]} 14... Nxb4 {[%clk 0:02:21]} 15. cxb4 {[%clk 0:02:28.9]} 15... Qb6
{[%clk 0:02:21.7]} 16. Qb3 {[%clk 0:02:25.1]} 16... Qd8 {[%clk 0:01:47.2]} 17.
Be3 {[%clk 0:02:23.2]} 17... b5 {[%clk 0:01:39.9]} 18. a5 {[%clk 0:02:21.3]}
18... Bc6 {[%clk 0:01:40.2]} 19. Rac1 {[%clk 0:02:19.6]} 19... Qd7 {[%clk
0:01:40]} 20. Bb6 {[%clk 0:02:06.5]} 20... Nf6 {[%clk 0:01:36.3]} 21. Nd4 {[%clk
0:01:56.8]} 21... Ba8 {[%clk 0:01:35.2]} 22. Rc7 {[%clk 0:01:55.8]} 22... Qe8
{[%clk 0:01:35.9]} 23. Rfc1 {[%clk 0:01:22]} 23... Nxe4 {[%clk 0:01:16]} 24. Qe3
{[%clk 0:01:00.7]} 24... Nf6 {[%clk 0:01:12.6]} 25. Nc6 {[%clk 0:01:00.5]} 25...
Kh8 {[%clk 0:00:24.9]} 26. Re7 {[%clk 0:00:48.9]} 26... Qc8 {[%clk 0:00:11.8]}
27. Na7 {[%clk 0:00:38]} 1-0

[Event "*** Titled Tuesday Blitz"]
[Site "Chess.com"]
[Date "2021.02.09"]
[Round "8"]
[White "Dahamdi_Sanudula"]
[Black "lamomiablanca"]
[Result "0-1"]
[WhiteElo "1765"]
[BlackElo "2265"]
[TimeControl "180+1"]
[EndTime "11:28:25 PST"]
[Termination "lamomiablanca won by checkmate"]

1. d4 {[%clk 0:03:00.9]} 1... Nf6 {[%clk 0:02:57.4]} 2. e3 {[%clk 0:03:00.8]}
2... d6 {[%clk 0:02:55.5]} 3. Bd3 {[%clk 0:03:00.2]} 3... g6 {[%clk 0:02:53.8]}
4. f4 {[%clk 0:02:59.9]} 4... Bg7 {[%clk 0:02:53.9]} 5. Nf3 {[%clk 0:02:59.4]}
5... O-O {[%clk 0:02:54.4]} 6. O-O {[%clk 0:02:59.1]} 6... Nbd7 {[%clk 0:02:55]}
7. c3 {[%clk 0:02:57.9]} 7... b6 {[%clk 0:02:55.5]} 8. Nbd2 {[%clk 0:02:57.4]}
8... Bb7 {[%clk 0:02:55.6]} 9. Qe2 {[%clk 0:02:57.2]} 9... Re8 {[%clk
0:02:54.6]} 10. e4 {[%clk 0:02:52.6]} 10... e5 {[%clk 0:02:52.4]} 11. fxe5
{[%clk 0:02:50.4]} 11... dxe5 {[%clk 0:02:52.7]} 12. d5 {[%clk 0:02:47.5]} 12...
Nc5 {[%clk 0:02:52]} 13. Bb1 {[%clk 0:02:42.2]} 13... Ba6 {[%clk 0:02:50.4]} 14.
c4 {[%clk 0:02:40.8]} 14... c6 {[%clk 0:02:41.4]} 15. b4 {[%clk 0:02:33.7]}
15... Nb7 {[%clk 0:02:30.5]} 16. Bd3 {[%clk 0:02:31.8]} 16... cxd5 {[%clk
0:02:30.1]} 17. cxd5 {[%clk 0:02:27.2]} 17... Bxd3 {[%clk 0:02:29.7]} 18. Qxd3
{[%clk 0:02:27.3]} 18... Nd6 {[%clk 0:02:30.3]} 19. a4 {[%clk 0:02:24]} 19...
Rc8 {[%clk 0:02:28.3]} 20. Bb2 {[%clk 0:02:23.6]} 20... Nd7 {[%clk 0:02:24.8]}
21. Rac1 {[%clk 0:02:21.3]} 21... a5 {[%clk 0:02:22.9]} 22. Bc3 {[%clk
0:02:09.7]} 22... axb4 {[%clk 0:02:21.9]} 23. Bxb4 {[%clk 0:02:09.1]} 23... Nc5
{[%clk 0:02:22.5]} 24. Bxc5 {[%clk 0:02:09.2]} 24... bxc5 {[%clk 0:02:23.4]} 25.
Nc4 {[%clk 0:02:06.1]} 25... Nb7 {[%clk 0:02:13]} 26. Qc3 {[%clk 0:01:56.7]}
26... Ra8 {[%clk 0:02:11.9]} 27. Ra1 {[%clk 0:01:40.8]} 27... Ra6 {[%clk
0:02:05]} 28. Qd2 {[%clk 0:01:31.2]} 28... Qd7 {[%clk 0:01:59.9]} 29. Qc2 {[%clk
0:01:22.9]} 29... Rea8 {[%clk 0:01:56.9]} 30. Nfxe5 {[%clk 0:00:58.8]} 30... Qe8
{[%clk 0:01:50.6]} 31. Qb2 {[%clk 0:00:54.8]} 31... Nd8 {[%clk 0:01:48.7]} 32.
Qc3 {[%clk 0:00:38]} 32... Rxa4 {[%clk 0:01:46.7]} 33. Rxa4 {[%clk 0:00:37.7]}
33... Rxa4 {[%clk 0:01:47.6]} 34. Qg3 {[%clk 0:00:37.1]} 34... Bxe5 {[%clk
0:01:43.8]} 35. Nxe5 {[%clk 0:00:36.3]} 35... Rxe4 {[%clk 0:01:44.4]} 36. Nc6
{[%clk 0:00:20.4]} 36... Nxc6 {[%clk 0:01:41]} 37. dxc6 {[%clk 0:00:20.5]} 37...
Qxc6 {[%clk 0:01:41.5]} 38. Qf3 {[%clk 0:00:20.4]} 38... Qe6 {[%clk 0:01:40.5]}
39. Qf2 {[%clk 0:00:19.2]} 39... c4 {[%clk 0:01:40.7]} 40. Qa7 {[%clk
0:00:18.8]} 40... c3 {[%clk 0:01:38]} 41. Qa8+ {[%clk 0:00:18.2]} 41... Kg7
{[%clk 0:01:37.5]} 42. Qa1 {[%clk 0:00:18.8]} 42... Qe5 {[%clk 0:01:35.6]} 43.
Rc1 {[%clk 0:00:18.8]} 43... Rc4 {[%clk 0:01:32]} 44. Qa2 {[%clk 0:00:18.1]}
44... Qc5+ {[%clk 0:01:31]} 45. Kh1 {[%clk 0:00:18]} 45... c2 {[%clk 0:01:30.4]}
46. Qb2+ {[%clk 0:00:17.9]} 46... Qd4 {[%clk 0:01:25.7]} 47. Qa2 {[%clk
0:00:15.7]} 47... Qd1+ {[%clk 0:01:24.8]} 48. Rxd1 {[%clk 0:00:13.6]} 48...
cxd1=Q# {[%clk 0:01:25.7]} 0-1

[Event "*** Titled Tuesday Blitz"]
[Site "Chess.com"]
[Date "2021.02.09"]
[Round "8"]
[White "mr65"]
[Black "Trickster_Pony"]
[Result "1-0"]
[WhiteElo "2099"]
[BlackElo "1490"]
[TimeControl "180+1"]
[EndTime "11:28:33 PST"]
[Termination "mr65 won by resignation"]

1. e4 {[%clk 0:02:44.7]} 1... c5 {[%clk 0:02:50.3]} 2. d4 {[%clk 0:02:43.4]}
2... cxd4 {[%clk 0:02:47.7]} 3. c3 {[%clk 0:02:43.5]} 3... dxc3 {[%clk
0:02:47.9]} 4. Nxc3 {[%clk 0:02:43.5]} 4... Nc6 {[%clk 0:02:40.5]} 5. Nf3 {[%clk
0:02:44.4]} 5... d6 {[%clk 0:02:39.7]} 6. Bc4 {[%clk 0:02:44]} 6... a6 {[%clk
0:02:39.8]} 7. O-O {[%clk 0:02:42.9]} 7... Nf6 {[%clk 0:02:38.6]} 8. e5 {[%clk
0:02:42.6]} 8... dxe5 {[%clk 0:02:04.4]} 9. Qxd8+ {[%clk 0:02:40.9]} 9... Nxd8
{[%clk 0:01:56]} 10. Nxe5 {[%clk 0:02:40.2]} 10... Be6 {[%clk 0:01:44.2]} 11.
Be2 {[%clk 0:02:36.6]} 11... g6 {[%clk 0:01:35.3]} 12. Na4 {[%clk 0:02:21.6]}
12... Nd5 {[%clk 0:01:29.1]} 13. Bf3 {[%clk 0:02:16]} 13... Nc6 {[%clk
0:01:07.2]} 14. Bxd5 {[%clk 0:02:11.2]} 14... Bxd5 {[%clk 0:01:06.4]} 15. Nb6
{[%clk 0:02:10.4]} 15... Rd8 {[%clk 0:01:05.5]} 16. Nxd5 {[%clk 0:02:02.2]}
16... Rxd5 {[%clk 0:01:00.7]} 17. Nxc6 {[%clk 0:02:00.5]} 17... bxc6 {[%clk
0:01:01.6]} 18. Be3 {[%clk 0:02:00.2]} 18... Bg7 {[%clk 0:01:00.5]} 19. Rac1
{[%clk 0:01:59.9]} 19... Bxb2 {[%clk 0:00:44.7]} 20. Rxc6 {[%clk 0:01:59.1]}
20... O-O {[%clk 0:00:37.8]} 21. Rxa6 {[%clk 0:01:57]} 21... Rb8 {[%clk
0:00:32.8]} 22. Rb1 {[%clk 0:01:50.6]} 22... Be5 {[%clk 0:00:29.9]} 23. Rxb8+
{[%clk 0:01:49.4]} 23... Bxb8 {[%clk 0:00:30.8]} 24. g3 {[%clk 0:01:49.1]} 24...
Kg7 {[%clk 0:00:28.1]} 25. a4 {[%clk 0:01:40.9]} 25... Bc7 {[%clk 0:00:23.1]}
26. Ra7 {[%clk 0:01:39]} 26... Bd6 {[%clk 0:00:22.2]} 27. a5 {[%clk 0:01:37.9]}
27... Bc5 {[%clk 0:00:22]} 28. Bxc5 {[%clk 0:01:30.8]} 28... Rxc5 {[%clk
0:00:22.9]} 29. Rxe7 {[%clk 0:01:28.9]} 29... Rxa5 {[%clk 0:00:22.4]} 30. Kg2
{[%clk 0:01:28.8]} 30... Rf5 {[%clk 0:00:20.1]} 31. h4 {[%clk 0:01:27.6]} 31...
h5 {[%clk 0:00:20.1]} 32. Re3 {[%clk 0:01:26.3]} 32... Rf6 {[%clk 0:00:20.2]}
33. Rf3 {[%clk 0:01:26]} 33... Rxf3 {[%clk 0:00:19.1]} 34. Kxf3 {[%clk
0:01:25.8]} 34... Kf6 {[%clk 0:00:17.3]} 35. Kf4 {[%clk 0:01:25.1]} 35... Ke6
{[%clk 0:00:16.9]} 36. Ke4 {[%clk 0:01:24.8]} 36... Kd6 {[%clk 0:00:15.8]} 37.
Kf4 {[%clk 0:01:22.8]} 37... Ke6 {[%clk 0:00:16.1]} 38. Kg5 {[%clk 0:01:22.2]}
38... Ke5 {[%clk 0:00:15.8]} 39. f3 {[%clk 0:01:20.8]} 39... Kd4 {[%clk
0:00:13.1]} 40. Kf6 {[%clk 0:01:20.2]} 40... Ke3 {[%clk 0:00:12.9]} 41. Kxf7
{[%clk 0:01:20.3]} 41... Kxf3 {[%clk 0:00:12.8]} 42. Kxg6 {[%clk 0:01:20.3]}
42... Kg4 {[%clk 0:00:10.1]} 43. Kh6 {[%clk 0:01:18.5]} 43... Kxg3 {[%clk
0:00:10.5]} 44. Kxh5 {[%clk 0:01:18.4]} 44... Kf4 {[%clk 0:00:11]} 45. Kg6
{[%clk 0:01:18.1]} 45... Ke5 {[%clk 0:00:09.7]} 46. h5 {[%clk 0:01:18]} 46...
Ke6 {[%clk 0:00:10.1]} 47. h6 {[%clk 0:01:17.5]} 47... Ke7 {[%clk 0:00:10.4]}
48. h7 {[%clk 0:01:17.5]} 1-0